Cogmind - Beta 16.1 @@@ ROGUE MODE // 2026.03.30 @ 01:02:20 Player: mephiles96 Result: Destroyed by H-55 Commando with Gauss Rifle Performance ------------- Evolutions (2) 1000 Regions Visited (5) 1000 Robots Destroyed (40) 200 Value Destroyed (1264) 1264 Prototype IDs (0) 0 Alien Tech Used (0) 0 Bonus (35) 35 TOTAL SCORE: 3499 Bonus ------- Follower Combat Kills 35 Cogmind --------- Core Integrity 0/550 Matter 300/300 Energy 99/100 System Corruption 1% Temperature Cool (9) Movement Core (50) Location -8/Storage Parts ------- > --- POWER (1) -------- (None) > --- PROPULSION (2) --- (None) > --- UTILITY (6) ------ Advanced Visual Processing Unit ECM Suite Improved Recalibrator > --- WEAPON (2) ------- (None) > --- INVENTORY (5) ---- Xenon Bombardment Thruster Xenon Bombardment Thruster Xenon Bombardment Thruster ECM Suite Mining Laser Peak State ------------ > --- POWER ------------ Light Nuclear Core > --- PROPULSION ------- Wheel Compact Wheel > --- UTILITY ---------- Advanced Heat Sink Medium Storage Unit Structural Scanner Advanced Visual Processing Unit Advanced Visual Processing Unit Improved Recalibrator > --- WEAPON ----------- Heavy Assault Rifle Minigun > --- INVENTORY -------- Wheel Flight Unit Xenon Bombardment Thruster Xenon Bombardment Thruster Xenon Bombardment Thruster Xenon Bombardment Thruster ECM Suite Heavy Rocket Launcher Mining Laser [Rating: 31] Favorites ----------- Power Ion Engine Engine Ion Engine Power Core Light Nuclear Core Propulsion Light Treads Treads Light Treads Wheel Compact Wheel Utility Medium Storage Unit Device Improved Terrain Scanner Storage Medium Storage Unit Processor Advanced Visual Processing Unit Protection Light Armor Plating Weapon Autogun Energy Gun Small Laser Ballistic Gun Autogun Launcher Heavy Rocket Launcher Special Weapon Mining Laser Build | -11 -10 -10 -9 -8 -8 ------- Run | Yrd Mat Min Mat Mat Sto Slots Evolved 4 | . . . 2 2 . Power . | . . . . . . Propulsion . | . . . . . . Utility 4 | . . . 2 2 . Weapon . | . . . . . . Parts Attached 46 | 7 3 . 11 4 21 Power 5 | 1 . . 1 1 2 Engine 3 | 1 . . 1 . 1 Core 2 | . . . . 1 1 Reactor . | . . . . . . Propulsion 8 | 2 . . 1 1 4 Treads 4 | 2 . . . . 2 Leg . | . . . . . . Wheel 4 | . . . 1 1 2 Hover . | . . . . . . Flight . | . . . . . . Utility 18 | 2 1 . 5 2 8 Device 13 | 1 . . 4 2 6 Storage 2 | 1 1 . . . . Processor 2 | . . . . . 2 Hackware . | . . . . . . Protection 1 | . . . 1 . . Artifact . | . . . . . . Weapon 15 | 2 2 . 4 . 7 Energy Gun 1 | 1 . . . . . Energy Cannon . | . . . . . . Ballistic Gun 11 | 1 2 . 4 . 4 Ballistic Cannon . | . . . . . . Launcher 2 | . . . . . 2 Special Weapon 1 | . . . . . 1 Impact Weapon . | . . . . . . Slashing Weapon . | . . . . . . Piercing Weapon . | . . . . . . Special Melee Weapon . | . . . . . . Unidentified Prototypes . | . . . . . . Parts Lost 27 | . . . 6 . 21 Power 2 | . . . . . 2 Propulsion 5 | . . . 1 . 4 Utility 13 | . . . 4 . 9 Weapon 7 | . . . 1 . 6 Highest Loss Streak 9 | . . . 2 . 9 To Critical Strikes . | . . . . . . Average Backups 8 | 5 8 10 8 9 9 Power . | . 1 1 1 1 . Propulsion 4 | 3 4 4 4 4 5 Utility . | . 1 2 . . . Weapon 2 | 1 2 3 3 3 2 Tool/Special . | . . . . . . Unused Backups 12 | . 1 . . 3 8 Power 1 | . . . . 1 . Propulsion 9 | . . . . 2 7 Utility 1 | . . . . . 1 Weapon 1 | . 1 . . . . Tool/Special . | . . . . . . Average Slot Usage (%) 89 | . 100 100 90 87 77 Engine 8 | . 14 14 11 7 . Core 2 | . . . . 1 6 Treads 14 | . 28 28 18 . 1 Wheel 5 | . . . 2 18 12 Device 20 | . 14 14 18 33 25 Storage 11 | . 14 14 11 9 8 Processor 2 | . . . . . 6 Protection 1 | . . . 6 . . Energy Gun 1 | . 10 . . . . Ballistic Gun 20 | . 17 28 21 18 15 Peak Build Rating 31 | 8 10 10 18 28 31 Average Rating 15 | 5 8 10 13 26 23 On Entrance 12 | . 8 10 10 18 28 Avg Prop Armor Cover (%) 11 | . . . 11 . . Naked Turns . | . . . . . . Heaviest Build 33 | 13 22 22 28 33 31 Greatest Support 40 | 40 40 40 40 32 40 Greatest Overweight (x) 6 | . . . 1 1 6 Average Overweight (x) . | . . . . . . Largest Inventory Capacity 10 | 8 10 10 10 10 10 Average Capacity 9 | 7 9 10 10 10 9 Most Carried 10 | 8 10 10 10 10 10 Average Carried 8 | 5 8 10 8 9 9 Final Capacity 10 | 8 10 10 10 10 5 Final Carried 10 | 8 10 10 10 10 5 Class Distribution -------------------- 79% | Mutant 14% | Scavenger-Mutant 5% | Skirmisher Dominant Class ---------------- Mutant | -10/Materials Mutant | -10/Mines Mutant | -9/Materials Mutant | -8/Materials Scavenger-Mutant | -8/Storage Resources | -11 -10 -10 -9 -8 -8 ----------- Run | Yrd Mat Min Mat Mat Sto Matter Collected 1276 | 269 42 2 359 115 489 Remotely . | . . . . . . Salvage Created 1528 | 106 50 . 482 156 734 Parts 93 | 13 2 . 31 8 39 Haulers Intercepted . | . . . . . . Recyclers Shooed 1 | 1 . . . . . Parts Field Recycled . | . . . . . . Retrieved Matter . | . . . . . . Parts Self-Destructed . | . . . . . . Prevented . | . . . . . . Parts Restored . | . . . . . . Kills | -11 -10 -10 -9 -8 -8 ------- Run | Yrd Mat Min Mat Mat Sto Combat Hostiles Destroyed 32 | . 3 . 12 3 14 Guns 29 | . 3 . 12 3 11 AOE 3 | . . . . . 3 Classes Destroyed 9 | 1 1 . 4 . 3 Worker 1 | . . . . . 1 Tunneler 6 | 5 . . 1 . . Mechanic 1 | . . . . . 1 Swarmer 6 | . 3 . 3 . . Grunt 11 | . . . 5 2 4 Brawler 2 | . . . 1 . 1 Duelist 4 | . . . 1 . 3 Protector 1 | . . . . . 1 Sentry 8 | . . . 2 1 5 Best Kill Streak 8 | 2 3 . 5 2 8 Combat Bots Only 5 | . 3 . 5 2 4 Max Kills in Single Turn 3 | 1 1 . 1 1 3 Gunslinging . | . . . . . . Exploded 3 | . . . . . 3 Melee . | . . . . . . Uniques/NPCs Destroyed . | . . . . . . Combat | -11 -10 -10 -9 -8 -8 -------- Run | Yrd Mat Min Mat Mat Sto Hostile Shots Fired 230 | . 36 3 62 9 120 Missed 51 | . 6 1 14 3 27 Hits 179 | . 30 2 48 6 93 Melee 24 | . . . 6 . 18 Projectile 155 | . 30 2 42 6 75 Critical Strikes 12 | . 3 . 1 1 7 Part Disruptions 1 | . . . . . 1 Damage Taken 2926 | . 242 23 644 92 1925 Core 663 | . 19 11 77 32 524 Absorbed by Shields . | . . . . . . Core Remaining (%) 89 | 100 . 88 80 . . Volleys Fired 104 | 9 9 . 39 4 43 Largest 2 | 2 2 . 2 2 2 Hottest 60 | 60 60 . 50 50 50 Shots Fired 193 | 18 18 . 78 8 71 Gun 190 | 18 18 . 78 8 68 Cannon . | . . . . . . Launcher 3 | . . . . . 3 Special . | . . . . . . Kinetic 172 | 9 9 . 78 8 68 Thermal 18 | 9 9 . . . . Explosive 3 | . . . . . 3 Electromagnetic . | . . . . . . Robot Hit Streak 12 | 12 3 . 10 12 11 Robot Miss Streak 5 | 1 3 . 4 . 5 Penetration Max . | . . . . . . Secondary Targets 3 | . 2 . 1 . . Max Gunslinging Chain 1 | . 1 . 1 . . Shots Hit Robots 122 | 14 9 . 50 7 42 Core Hits 64 | 7 3 . 17 6 31 Critical Kills . | . . . . . . Critical Parts Destroyed . | . . . . . . Critical Strikes . | . . . . . . Melee Attacks . | . . . . . . Impact . | . . . . . . Slashing . | . . . . . . Piercing . | . . . . . . Sneak Attacks . | . . . . . . Combat Hostiles . | . . . . . . Follow-up Attacks . | . . . . . . Damage Inflicted 2424 | 146 106 3 851 133 1185 Guns 2023 | 146 106 . 851 133 787 Cannons 13 | . . . . . 13 Explosions 380 | . . . . . 380 Melee . | . . . . . . Ramming 8 | . . 3 . . 5 Kinetic 1846 | 47 28 . 851 133 787 Thermal 177 | 99 78 . . . . Explosive 380 | . . . . . 380 Electromagnetic . | . . . . . . Impact 13 | . . . . . 13 Slashing . | . . . . . . Piercing . | . . . . . . Highest Corruption 6 | . . . 6 . 1 Average Corruption 5 | . . . 5 . 1 Corruption Purged . | . . . . . . Corruption Blocked . | . . . . . . Effects 11 | . . . 11 . . Message Errors 1 | . . . 1 . . Matter Fused 1 | . . . 1 . . Energy Discharges 2 | . . . 2 . . Parts Fused 1 | . . . 1 . . Data Loss (minor) 1 | . . . 1 . . Data Loss (major) 5 | . . . 5 . . Overload Shots . | . . . . . . Overflow Damage . | . . . . . . Projectiles . | . . . . . . Explosions . | . . . . . . Melee . | . . . . . . Knockbacks . | . . . . . . Impact . | . . . . . . Kinetic . | . . . . . . Secondary . | . . . . . . Self-Inflicted Damage 50 | . . . . . 50 Shots 2 | . . . . . 2 Rammed 2 | . . 1 . . 1 Targets Rammed 2 | . . 1 . . 1 Kicked . | . . . . . . Crushed . | . . . . . . Highest Temperature 68 | 40 60 . 43 17 68 Average Temperature 15 | 15 34 . 9 9 14 Received Heat Transfer 798 | . . 12 129 54 603 Siege Activations . | . . . . . . Martial Activations . | . . . . . . Shielding Activations . | . . . . . . Robots Disrupted . | . . . . . . Combat Hostiles . | . . . . . . Robots Corrupted . | . . . . . . Combat Hostiles . | . . . . . . Parts Fried . | . . . . . . Impact Corruptions . | . . . . . . Robots Melted . | . . . . . . Combat Hostiles . | . . . . . . Parts Melted 2 | 1 1 . . . . Heat Transferred 400 | 225 175 . . . . Parts Sabotaged . | . . . . . . Parts Stolen . | . . . . . . Parts Stripped . | . . . . . . Power Chain Reactions . | . . . . . . Alert | -11 -10 -10 -9 -8 -8 ------- Run | Yrd Mat Min Mat Mat Sto Maximum Alert Level . | . . . . . . Low Security (%) 100 | 100 100 100 100 100 100 Level 1 . | . . . . . . Level 2 . | . . . . . . Level 3 . | . . . . . . Level 4 . | . . . . . . Level 5 . | . . . . . . High Security . | . . . . . . Max Security . | . . . . . . Peak Influence 183 | 10 60 8 183 107 157 Initial 66 | . 3 5 . 66 40 Average 37 | 1 16 . 53 64 61 Influence Increases 1028 | 25 87 8 402 81 425 Destroy 0b10 Robot/C 640 | . 60 . 240 60 280 Destroy 0b10 Robot/NC 45 | 25 . . 5 . 15 Destroy Leader 150 | . 10 . 50 20 70 Allied During Kill 3 | . . . . . 3 Successful Hack 25 | . 17 8 . . . Disable Machine 45 | . . . 30 . 15 Destroy Structure 45 | . . . 2 1 42 Lose Combat Pursuer 75 | . . . 75 . . Influence Decreases 1028 | 20 78 22 243 143 522 Entered New Map 161 | . 2 9 . 93 57 Time Decay 658 | 20 76 13 187 50 312 Lost Part 196 | . . . 56 . 140 Lost Ally 13 | . . . . . 13 Squads Dispatched 5 | . . 1 . 1 3 Investigation 1 | . . 1 . . . Extermination . | . . . . . . Reinforcement 2 | . . . . 1 1 Assault 2 | . . . . . 2 Garrison . | . . . . . . Intercept . | . . . . . . Searches Triggered . | . . . . . . Construction Impeded . | . . . . . . Haulers Reinforced . | . . . . . . Active Scanning Responses . | . . . . . . Cargo Convoy Interrupts . | . . . . . . Stealth | -11 -10 -10 -9 -8 -8 --------- Run | Yrd Mat Min Mat Mat Sto Distress Signals 6 | . . . 4 . 2 Communications Jammed . | . . . . . . Distress Signals . | . . . . . . Times Spotted 59 | . 3 2 19 3 32 Peak Tracking Total 10 | . 3 2 6 2 10 Tactical Retreats 3 | . . . 3 . . Traps | -11 -10 -10 -9 -8 -8 ------- Run | Yrd Mat Min Mat Mat Sto Traps Triggered 1 | . . . . . 1 Indirectly . | . . . . . . Trap Hack Attempts . | . . . . . . Triggered . | . . . . . . Disarmed . | . . . . . . Reprogrammed . | . . . . . . Reused . | . . . . . . Traps Extracted . | . . . . . . Installed . | . . . . . . Triggered . | . . . . . . Machines | -11 -10 -10 -9 -8 -8 ---------- Run | Yrd Mat Min Mat Mat Sto Machines Disabled 3 | . . . 2 . 1 Max in Single Turn 1 | . . . 1 . 1 Machines Repaired . | . . . . . . Machines Dismantled . | . . . . . . Machines Sabotaged . | . . . . . . Overloaded Fab Kills . | . . . . . . Hacking | -11 -10 -10 -9 -8 -8 --------- Run | Yrd Mat Min Mat Mat Sto Machines Accessed 9 | . 3 2 1 . 3 Terminals 8 | . 3 1 1 . 3 Fabricators . | . . . . . . Repair Stations . | . . . . . . Recycling Units . | . . . . . . Scanalyzers . | . . . . . . Garrison Access . | . . . . . . Total Hacks 23 | . 10 3 2 . 8 Successful 9 | . 4 2 1 . 2 Failed 14 | . 6 1 1 . 6 Catastrophic 4 | . 2 1 1 . . Database Lockouts . | . . . . . . Manual 20 | . 11 2 2 . 5 Terminals 22 | . 10 2 2 . 8 Fabricators . | . . . . . . Repair Stations . | . . . . . . Recycling Units . | . . . . . . Scanalyzers . | . . . . . . Garrison Access . | . . . . . . Terminal Hacks 4 | . 1 2 . . 1 Open Door 2 | . . 1 . . 1 Branch Access Points 2 | . 1 1 . . . Fabricator Hacks . | . . . . . . Repair Station Hacks . | . . . . . . Recycling Unit Hacks . | . . . . . . Scanalyzer . | . . . . . . Garrison Access Hacks . | . . . . . . Unauthorized Hacks 5 | . 3 . 1 . 1 Terminals 5 | . 3 . 1 . 1 Botnet 5 | . 3 . 1 . 1 Fabricators . | . . . . . . Repair Stations . | . . . . . . Recycling Units . | . . . . . . Scanalyzers . | . . . . . . Garrison Access . | . . . . . . Data Cores Recovered . | . . . . . . Used . | . . . . . . Hacking Detections 8 | . 3 1 1 . 3 Full Trace Events 1 | . . 1 . . . Feedback Events . | . . . . . . Feedback Blocked . | . . . . . . Robot Schematics Acquired . | . . . . . . Robots Built . | . . . . . . Authchips . | . . . . . . Time . | . . . . . . Total Robot Build Rating . | . . . . . . Part Schematics Acquired . | . . . . . . Parts Built . | . . . . . . Authchips . | . . . . . . Time . | . . . . . . Total Part Build Rating . | . . . . . . Part Studies Acquired . | . . . . . . Parts Repaired . | . . . . . . Time . | . . . . . . Parts Recycled . | . . . . . . Recycled Matter . | . . . . . . Retrieved Matter . | . . . . . . Retrieved Components . | . . . . . . Parts Scanalyzed . | . . . . . . Part Schematics Acquired . | . . . . . . Parts Damaged . | . . . . . . Bothacking | -11 -10 -10 -9 -8 -8 ------------ Run | Yrd Mat Min Mat Mat Sto Used RIF Installer . | . . . . . . Robots Hacked . | . . . . . . Non-combat . | . . . . . . Combat . | . . . . . . Robot Hacks Applied . | . . . . . . Relay Couplers Released . | . . . . . . Fabnet Peak Effective % . | . . . . . . Robots Rewired . | . . . . . . Allies Hacked . | . . . . . . Hacks Repelled . | . . . . . . Allies | -11 -10 -10 -9 -8 -8 -------- Run | Yrd Mat Min Mat Mat Sto Total Allies 2 | . . . . . 2 Largest Group 2 | . . . . . 2 Highest-Rated Group 62 | . . . . . 62 Highest-Rated Ally 31 | . . . . . 31 Total Orders . | . . . . . . Ally Attacks 14 | . . . . . 14 Total Damage 150 | . . . . . 150 Kills 1 | . . . . . 1 Allies Corrupted . | . . . . . . Allies Melted . | . . . . . . Intel | -11 -10 -10 -9 -8 -8 ------- Run | Yrd Mat Min Mat Mat Sto Active Infowar (turns) 1993 | 1 287 469 498 119 619 Optics 376 | . . . . . 376 Sensors 110 | . . . . . 110 Terrain 968 | . . . 490 119 359 Structural 196 | . . . . . 196 Seismic 1163 | 1 287 469 406 . . ECM 249 | . . . . . 249 Robot Analysis Total . | . . . . . . Derelict Logs Recovered 1 | . . 1 . . . Drone Launches . | . . . . . . Drone Recoveries . | . . . . . . Exploration | -11 -10 -10 -9 -8 -8 ------------- Run | Yrd Mat Min Mat Mat Sto Turns Passed 2403 | 209 287 469 578 119 741 Spaces Moved 1399 | 109 156 290 280 57 507 Core 18 | 7 . . . . 11 Treads 759 | 102 156 290 181 . 30 Legs . | . . . . . . Wheels 622 | . . . 99 57 466 Hover . | . . . . . . Flight . | . . . . . . Fastest Speed 50 | 50 160 160 115 100 50 Average Speed 135 | 152 160 160 149 108 105 Slowest Speed 350 | 160 160 160 240 115 350 Overloaded Moves . | . . . . . . Propulsion Burnouts . | . . . . . . Robots Hopped . | . . . . . . Potential Cave-ins . | . . . . . . Cave-ins Triggered . | . . . . . . Exploration Rate (%) 32 | 5 25 71 29 5 62 Regions Visited 5 Branch Regions 2 Pre-discovered Areas . | . . . . . . Known Exits Taken 2 | . 1 . 1 . . Unknown Exits Taken 3 | 1 . 1 . 1 . Scrap Searched 1 | . . 1 . . . Spaces Dug . | . . . . . . Terrain Destroyed 42 | . . . . . 42 Melee . | . . . . . . Projectile . | . . . . . . AOE 42 | . . . . . 42 Terrain Rammed . | . . . . . . Walls Destroyed . | . . . . . . Machines Disabled . | . . . . . . Actions | -11 -10 -10 -9 -8 -8 --------- Run | Yrd Mat Min Mat Mat Sto Total 1741 | 132 179 295 376 112 647 Wait 141 | . 4 5 43 34 55 Move 1394 | 108 155 289 279 56 507 Hop . | . . . . . . Pick Up 26 | 8 4 . 2 7 5 Fast Attach 30 | 7 . . 3 2 18 Attach 9 | . . . 4 . 5 Detach . | . . . . . . Swap 14 | . 3 . 4 2 5 Drop 21 | . 4 . 2 7 8 Fire 104 | 9 9 . 39 4 43 Melee . | . . . . . . Ram 1 | . . . . . 1 Kick . | . . . . . . Crush 1 | . . 1 . . . Escape Stasis . | . . . . . . Rewire . | . . . . . . Trap . | . . . . . . Miscellaneous . | . . . . . . Route ------- -11/Scrapyard -10/Materials (discovered 2 exits: *Min x2) -10/Mines (discovered 2 exits: *Mat x2) -9/Materials (discovered 2 exits: *Mat x2) -8/Materials -8/Storage History --------- Turn | Location | Event 3 | -11/Scrapyard | Discovered new exit (range 16) 210 | -11/Scrapyard | Entered Materials 306 | -10/Materials | Build established: Mutant 334 | -10/Materials | Identified exit to Mines 497 | -10/Materials | Entered Mines 594 | -10/Mines | Assembled infested the area 599 | -10/Mines | Assisted by a Guerilla fighting off Assembled 711 | -10/Mines | Learned location of 1 exit from Materials 747 | -10/Mines | Discovered new exit (range 8) 771 | -10/Mines | Found the Drone Emporium 862 | -10/Mines | Discovered new exit (range 5) 966 | -10/Mines | Entered Materials 966 | -9/Materials | Evolved 2 slots: Utility x2 967 | -9/Materials | Identified exit to Materials 1522 | -9/Materials | Discovered exit to Materials (range 14) 1544 | -9/Materials | Entered another Materials area 1544 | -8/Materials | Evolved 2 slots: Utility x2 1589 | -8/Materials | Discovered new exit (range 14) 1663 | -8/Materials | Entered Storage 1899 | -8/Storage | Met a pair of Derelict thieves 2056 | -8/Storage | Core integrity fell below 50% 2096 | -8/Storage | Lost 9 parts (1p1n4u3w) 2328 | -8/Storage | Build established: Scavenger-Mutant 2401 | -8/Storage | Core integrity fell below 20% 2404 | -8/Storage | Destroyed by H-55 Commando with Gauss Rifle Last Messages --------------- the area. 02378_ Proton Bomb Trap short circuited. 02378_ A bubble of electromagnetic force engulfs the area. 02378_ Proton Bomb Trap short circuited. 02378_ A bubble of electromagnetic force engulfs the area. 02378_ Hvy. Assault Rifle destroyed. 02386_ U-05 Engineer lays Concrete. 02397_ Slug penetrates A-02 Transporter. 02397_ A-02 Transporter destroyed. 02397_ Adv. Heat Sink destroyed. 02397_ Acquired 9 matter. 02397_ K-01 Serf collects debris. 02399_ Med. Storage Unit destroyed. 02399_ Critical hit (Burn: +37). 02401_ K-01 Serf collects debris. 02401_ Structural Scanner destroyed. 02402_ Autogun destroyed. 02403_ Wheel destroyed. Map ----- +----------------------------------------------------+ | ??????????????????????????????????????? | | ??????????????????????????????????????? | | ??????????????????????????????????????# | | ????????????????????????????????????#?? | | ??????????????????????????????????????? | | ??????????????????????????????????????? | | ????????????? ??????????????????????? | | ????????????? ??????????????????????? | | ????????????? ??????????????????????? | | ????????????? ??????????????????????? | | ????????????# #?????????????????????? | | ????????????+ #????????????????????## | | ????????????# ##????????????????#??## | | ???????????## ##???????????????????## | | ???????????##a k###??????????????????## | | ???????????## ###??????????????????## | | ???????????# ##?????????????????? # | | ???????????# ##?????????????????? # | | ???????????# #??????????????????? # | | ???????????? Y ????????????????## ? # | | ???????????+ #???????????????## ? # | | ???????????## ##???????????????## # | | ???????????## ##???????????????## # | | ???????????## ##???????????????## | | ?????????"### ##???????????????## | | ?????????"### @g##???????????????## | | ????????? # ##???????????????###### | | ???????????[#a g##T ####??????####### | | ??????????? #h ####+#####??????####### | | ??????????? + | | ??????????? #=gg####### ########### | | ??????????? #== #####T#/########### | | ??????????? #[[ # # #### | | ??????????? #%[[# """ """ # #### | | ???????????##[[ # "T" """ # #### | | ???????????##= # """ / / | | ???????????## r # # | | ???????????##k # !!! ###### | | ???????????## # !!! ### | | ??????????### # !!! ## | | ??????????### ############# !]] | | ??????????## ## % + !]] | | ??????????## ## = # ]]] | | ??????????## % ## ! # | | ??????????## ## * # | | ?????????### #########+## ##+###### | | ?????????#####+########### # ## | | ?????????## / + ??????? | | ?????????## # # ??????? | | ?????????## # # ??????? | +----------------------------------------------------+ Best States ------------- Heat Dissipation 50 Energy Generation 14 Energy Capacity 265 Matter Stores 300 Matter Capacity 300 Sight Range 20 Robot Scan Range 15 Terrain Scan Range 16 Terrain Scan Density 10 ECM Strength 1 Armor Coverage 150 Evasion (%) 43 Recoil Reduction 2 Kinecelleration 30 Item Schematics ----------------- None Robot Schematics ------------------ None Fabricated ------------ Nothing Repaired ---------- Nothing Studied --------- None Alien Tech Used ----------------- None Achievements -------------- None Challenges ------------ None Game ------ Seed SensorWaveLattice Manual? 0 Play Time 00:24:51 Cumulative 37.0 hours Start 2026.03.30 @ 00:38:26 End 2026.03.30 @ 01:02:20 Sessions 1 Manual Loads 0 Difficulty Rogue Special Mode None Game No. 46 Rogue 46 Adventurer 0 Explorer 0 Win Type - Total 0 Types 0/0/0/0/0/0/0/0/0/0 Lore% 15 Gallery% 30 Achievement% 22 Wizard Run 0 Options --------- Layout 2 ASCII 0 Keyboard 0 Movement Numpad Keybinds 1 Fullscreen 1 Font 24/Smallcaps Map View 50x44 Zoom Use 0% Tactical HUD 1 Map Filters NONE Filters NONE Steam 1 RUN: 4fba2a81-f652-4027-8432-6b9574657f49